bitfinex/quotes_BTCUSD_20230107
["timestamp","ask_amount","ask_price","bid_price","bid_amount"]
[1673111424231,0.21249461,16937.0,16936.0,2.13959799]
[1673111424526,0.21249461,16937.0,16936.0,2.63080599]
[1673111425217,0.21249461,16937.0,16936.0,2.40548544]
[1673111425498,0.21249461,16937.0,16936.0,2.89669344]
[1673111425777,0.21249461,16937.0,16936.0,2.40548544]
[1673111426032,0.21249461,16937.0,16936.0,3.76928654]
[1673111426285,0.21249461,16937.0,16936.0,3.27807854]
[1673111426543,0.21249461,16937.0,16936.0,2.89669344]
[1673111426790,0.21249461,16937.0,16936.0,2.40548544]
[1673111427300,0.21249461,16937.0,16936.0,3.03245973]
[1673111427554,0.21249461,16937.0,16936.0,3.76928664]
[1673111428592,0.21249461,16937.0,16936.0,2.89669344]
[1673111428840,0.21249461,16937.0,16936.0,2.40548544]
[1673111429093,0.21249461,16937.0,16936.0,2.89669344]
[1673111429437,0.21249461,16937.0,16936.0,2.13959799]
[1673111429598,0.21249461,16937.0,16936.0,2.63080599]
[1673111429854,0.21249461,16937.0,16936.0,2.89669344]
[1673111431590,0.21249461,16937.0,16936.0,2.40548544]
[1673111431813,0.21249461,16937.0,16936.0,2.89669344]
[1673111432073,0.21249461,16937.0,16936.0,2.40548544]
[1673111432338,0.21249461,16937.0,16936.0,2.89669344]
[1673111435144,0.21249461,16937.0,16936.0,2.63080599]
[1673111435405,0.21249461,16937.0,16936.0,2.89669344]
[1673111438257,0.21249461,16937.0,16936.0,2.40548544]
[1673111438508,0.21249461,16937.0,16936.0,2.89669344]
[1673111440374,0.21249461,16937.0,16936.0,2.40548544]
[1673111440616,0.21249461,16937.0,16936.0,2.63080599]
[1673111444324,0.21249461,16937.0,16936.0,2.89669344]
[1673111445382,0.21249461,16937.0,16936.0,2.63080599]
[1673111445618,0.21249461,16937.0,16936.0,2.13959799]
[1673111446410,0.38901048,16937.0,16936.0,2.40548544]
[1673111447427,0.38901048,16937.0,16936.0,3.27808283]
[1673111447699,0.38901048,16937.0,16936.0,2.89669344]
[1673111448458,0.38901048,16937.0,16936.0,2.40548544]
[1673111451645,0.38901048,16937.0,16936.0,3.27808703]
[1673111451899,0.38901048,16937.0,16936.0,2.89669344]
[1673111452727,0.38901048,16937.0,16936.0,3.27808681]
[1673111452988,0.38901048,16937.0,16936.0,3.76929481]
[1673111453238,0.38901048,16937.0,16936.0,3.27808681]
[1673111453494,0.21249461,16937.0,16936.0,3.76929481]
[1673111458570,0.21249461,16937.0,16936.0,3.94652831]
[1673111458857,0.21249461,16937.0,16936.0,3.45532031]
[1673111459095,0.21249461,16937.0,16936.0,3.94652831]
[1673111459796,0.21249461,16937.0,16936.0,4.57356836]
[1673111460587,0.21249461,16937.0,16936.0,4.12378454]
[1673111460844,0.21249461,16937.0,16936.0,3.63257654]
[1673111461094,0.21249461,16937.0,16936.0,3.76934041]
[1673111461597,0.21249461,16937.0,16936.0,4.12378454]
[1673111461837,0.21249461,16937.0,16936.0,3.63257654]
[1673111462087,0.21249461,16937.0,16936.0,4.12378454]
[1673111463081,0.21249461,16937.0,16936.0,4.12377888]
[1673111463358,0.21249461,16937.0,16936.0,3.76933475]
[1673111471147,0.38901048,16937.0,16936.0,2.63084593]
[1673111471393,0.38901048,16937.0,16936.0,2.40552538]
[1673111471677,0.38901048,16937.0,16936.0,2.13963793]
[1673111471910,0.38901048,16937.0,16936.0,2.40552538]
[1673111472435,0.38901048,16937.0,16936.0,2.13963793]
[1673111473722,0.38901048,16937.0,16936.0,2.40552538]
[1673111473976,0.38901048,16937.0,16936.0,2.13963793]
[1673111476482,0.21249461,16937.0,16936.0,3.27812185]
[1673111476710,0.21249461,16937.0,16936.0,3.76932985]
[1673111476991,0.21249461,16937.0,16936.0,2.89673338]
[1673111477251,0.21249461,16937.0,16936.0,3.27812177]
[1673111477500,0.21249461,16937.0,16936.0,3.76932977]
[1673111478290,0.21249461,16937.0,16936.0,3.27812177]
[1673111478545,0.21249461,16937.0,16936.0,3.76933125]
[1673111478794,0.21249461,16937.0,16936.0,3.76933133]
[1673111479048,0.38901048,16937.0,16936.0,2.89673338]
[1673111479288,0.38901048,16937.0,16936.0,2.40552538]
[1673111480906,0.21249461,16937.0,16936.0,2.40552538]
[1673111481381,0.21249461,16937.0,16936.0,2.89673338]
[1673111481636,0.21249461,16937.0,16936.0,2.40552538]
[1673111481917,0.21249461,16937.0,16936.0,3.76933193]
[1673111483241,0.38901048,16937.0,16936.0,2.89673338]
[1673111483434,0.21249461,16937.0,16936.0,2.40552538]
[1673111484426,0.212189,16937.0,16936.0,2.40552538]
[1673111484936,0.38870487,16937.0,16936.0,2.40552538]
[1673111485180,0.38870487,16937.0,16936.0,2.13963793]
[1673111491486,0.38870487,16937.0,16936.0,2.76693837]
[1673111491723,0.212189,16937.0,16936.0,4.39661402]
[1673111492491,0.212189,16937.0,16936.0,4.39609547]
[1673111493232,0.212189,16937.0,16936.0,3.76931358]
[1673111500194,0.212189,16937.0,16936.0,2.89673338]
[1673111500438,0.212189,16937.0,16936.0,3.27811685]
[1673111500955,0.212189,16937.0,16936.0,3.76932485]
[1673111501468,0.21200061,16937.0,16936.0,2.89673338]
[1673111501725,0.21200061,16937.0,16936.0,2.13963793]
[1673111502519,0.38851648,16937.0,16936.0,2.13963793]
[1673111504855,0.21200061,16937.0,16936.0,2.13963793]
[1673111505347,0.21200061,16937.0,16936.0,2.40552538]
[1673111505621,0.21200061,16937.0,16936.0,2.13963793]
[1673111506390,0.38851648,16937.0,16936.0,2.13963793]
[1673111506907,0.21200061,16937.0,16936.0,2.13963793]
[1673111507917,0.38851648,16937.0,16936.0,2.13963793]
[1673111508708,0.21200061,16937.0,16936.0,2.13963793]
[1673111509221,0.38851648,16937.0,16936.0,2.13963793]
[1673111511712,0.21200061,16937.0,16936.0,2.13963793]
[1673111513479,0.21200061,16937.0,16936.0,2.40552538]
[1673111514488,0.21200061,16937.0,16936.0,2.13963793]
[1673111514489,0.38851648,16937.0,16936.0,2.13963793]
[1673111514740,0.65407207,16937.0,16936.0,1.96238736]
[1673111516563,0.38851648,16937.0,16936.0,1.96238736]
[1673111516999,0.38851648,16937.0,16936.0,2.13963793]
[1673111517267,0.38851648,16937.0,16936.0,1.96238736]
[1673111517775,0.38851648,16937.0,16936.0,2.13963793]
[1673111524344,0.21200061,16937.0,16936.0,2.63084593]
[1673111524588,0.38851648,16937.0,16936.0,2.63084593]
[1673111525092,0.21200061,16937.0,16936.0,2.63084593]
[1673111525401,0.38851648,16937.0,16936.0,2.63084593]
[1673111526399,0.38851648,16937.0,16936.0,2.13963793]
[1673111534926,0.38851648,16937.0,16936.0,2.63084593]
[1673111536937,0.38851648,16937.0,16936.0,2.13963793]
[1673111537464,0.38851648,16937.0,16936.0,2.63084593]
[1673111537755,0.38851648,16937.0,16936.0,2.13963793]
[1673111537939,0.38851648,16937.0,16936.0,2.63084593]
[1673111538622,0.21200061,16937.0,16936.0,2.89673338]
[1673111539108,0.38851648,16937.0,16936.0,2.89673338]
[1673111540371,0.21200061,16937.0,16936.0,2.89673338]
[1673111540625,0.38851648,16937.0,16936.0,2.89673338]
[1673111540845,0.21200061,16937.0,16936.0,2.89673338]
[1673111541372,0.21200061,16937.0,16936.0,3.27811543]
[1673111541624,0.21200061,16937.0,16936.0,3.76932343]
[1673111541842,0.21200061,16937.0,16936.0,2.89673338]
[1673111542344,0.21200061,16937.0,16936.0,3.76932336]
[1673111544150,0.21200061,16937.0,16936.0,2.89673338]
[1673111545175,0.21200061,16937.0,16936.0,3.76931615]
[1673111549478,0.21200061,16937.0,16936.0,4.39629399]
[1673111549726,0.21200061,16937.0,16936.0,3.76931615]
[1673111551225,0.21200061,16937.0,16936.0,4.39622933]
[1673111551749,0.21200061,16937.0,16936.0,3.76931615]
[1673111554758,0.21200061,16937.0,16936.0,4.39622924]
[1673111555466,0.21200061,16937.0,16936.0,3.76931615]
[1673111555725,0.21200061,16937.0,16936.0,3.27810815]
[1673111555998,0.21200061,16937.0,16936.0,3.76931615]
[1673111556264,0.21200061,16937.0,16936.0,3.27810815]
[1673111556793,0.21200061,16937.0,16936.0,3.76931615]
[1673111559564,0.21200061,16937.0,16936.0,3.27810815]
[1673111559794,0.21179385,16937.0,16936.0,3.27810815]
[1673111562110,0.21179385,16937.0,16936.0,3.76931615]
[1673111564262,0.21179385,16937.0,16936.0,3.27810815]
[1673111568292,0.21179385,16937.0,16936.0,3.76931615]
[1673111568768,0.21179385,16937.0,16936.0,3.27810815]
[1673111570596,0.21179385,16937.0,16936.0,3.76931615]
[1673111574983,0.21148403,16937.0,16936.0,3.76931615]
[1673111575800,0.21148403,16937.0,16936.0,3.27810815]
[1673111577296,0.21148403,16937.0,16936.0,3.76931615]
[1673111578354,0.21148403,16937.0,16936.0,3.27810815]
[1673111579914,0.3879999,16937.0,16936.0,3.27810815]
[1673111580164,0.21148403,16937.0,16936.0,3.27810815]
[1673111580392,0.3879999,16937.0,16936.0,3.27810815]
[1673111580646,0.21148403,16937.0,16936.0,3.27810815]
[1673111583454,0.3879999,16937.0,16936.0,3.27810815]
[1673111584241,0.21148403,16937.0,16936.0,3.27810815]
[1673111585003,0.3879999,16937.0,16936.0,3.27810815]
[1673111585279,0.3879999,16937.0,16936.0,2.40552538]
[1673111585539,0.3879999,16937.0,16936.0,3.27811466]
[1673111586020,0.3879999,16937.0,16936.0,3.76932266]
[1673111587085,0.3879999,16937.0,16936.0,3.27811466]
[1673111588078,0.3879999,16937.0,16936.0,3.76932266]
[1673111588335,0.3879999,16937.0,16936.0,3.27811466]
[1673111588573,0.3879999,16937.0,16936.0,3.76932266]
[1673111589337,0.21148403,16937.0,16936.0,3.76932266]
[1673111593067,0.3879999,16937.0,16936.0,3.76932266]
[1673111593544,0.3879999,16937.0,16936.0,2.89673338]
[1673111593816,0.3879999,16937.0,16936.0,2.40552538]
[1673111594073,0.3879999,16937.0,16936.0,3.27811774]
[1673111594338,0.3879999,16937.0,16936.0,3.76932574]
[1673111595557,0.3879999,16937.0,16936.0,3.27811774]
[1673111596303,0.3879999,16937.0,16936.0,3.76932574]
[1673111596566,0.3879999,16937.0,16936.0,2.89673338]
[1673111596819,0.3879999,16937.0,16936.0,2.40552538]
[1673111597084,0.3879999,16937.0,16936.0,2.13963793]
[1673111597341,0.3879999,16937.0,16936.0,2.40552538]
[1673111598094,0.3879999,16937.0,16936.0,2.89673338]
[1673111599556,0.3879999,16937.0,16936.0,2.40552538]
[1673111599813,0.3879999,16937.0,16936.0,2.13963793]
[1673111600796,0.3879999,16937.0,16936.0,2.63084593]
[1673111603143,0.3879999,16937.0,16936.0,2.89673338]
[1673111603336,0.3879999,16937.0,16936.0,2.63084593]
[1673111603598,0.3879999,16937.0,16936.0,2.40552538]
[1673111604323,0.3879999,16937.0,16936.0,2.89673338]
[1673111604820,0.3879999,16937.0,16936.0,3.76932543]
[1673111606067,0.3879999,16937.0,16936.0,3.76932578]
[1673111606292,0.3879999,16937.0,16936.0,3.27811778]
[1673111607073,0.3879999,16937.0,16936.0,3.76932578]
[1673111607547,0.3879999,16937.0,16936.0,2.89673338]
[1673111608052,0.3879999,16937.0,16936.0,2.40552538]
[1673111609051,0.3879999,16937.0,16936.0,2.13963793]
[1673111609340,0.3879999,16937.0,16936.0,2.63084593]
[1673111611106,0.3879999,16937.0,16936.0,2.89673338]
[1673111614096,0.3879999,16937.0,16936.0,2.63084593]
[1673111615372,0.3879999,16937.0,16936.0,2.89673338]
[1673111615591,0.3879999,16937.0,16936.0,2.63084593]
[1673111616099,0.17651587,16937.0,16936.0,2.89673338]
[1673111617107,0.37647994,16937.0,16936.0,2.89673338]
[1673111617336,0.37647994,16937.0,16936.0,2.63084593]
[1673111617571,0.37647994,16937.0,16936.0,2.13963793]
[1673111618055,0.37647994,16937.0,16936.0,2.63084593]
[1673111618786,0.37647994,16937.0,16936.0,2.13963793]
[1673111619078,0.37647994,16937.0,16936.0,2.63084593]
[1673111620330,0.37647994,16937.0,16936.0,2.13963793]
[1673111621067,0.37647994,16937.0,16936.0,2.63084593]
[1673111621786,0.37647994,16937.0,16936.0,2.13963793]
[1673111622563,0.37647994,16937.0,16936.0,2.63084593]
[1673111622827,0.37647994,16937.0,16936.0,2.89673338]
[1673111623043,0.37647994,16937.0,16936.0,2.40552538]
[1673111623266,0.37647994,16937.0,16936.0,2.13963793]
[1673111624395,0.37647994,16937.0,16936.0,2.89673338]
[1673111626380,0.37647994,16937.0,16936.0,2.40552538]
[1673111627325,0.37647994,16937.0,16936.0,2.13963793]
[1673111628281,0.37647994,16937.0,16936.0,2.89673338]
[1673111629499,0.37647994,16937.0,16936.0,3.76932481]
[1673111629751,0.37647994,16937.0,16936.0,3.76932519]
[1673111630011,0.37647994,16937.0,16936.0,2.89673338]
[1673111631033,0.37647994,16937.0,16936.0,3.76932507]
[1673111631482,0.37647994,16937.0,16936.0,3.27811707]
[1673111631723,0.37647994,16937.0,16936.0,3.76932507]
[1673111631979,0.37647994,16937.0,16936.0,3.27811707]
[1673111632238,0.37647994,16937.0,16936.0,3.76932507]
[1673111632717,0.37647994,16937.0,16936.0,3.27811707]
[1673111633171,0.37647994,16937.0,16936.0,3.76932507]
[1673111638240,0.19996407,16937.0,16936.0,4.75087489]
[1673111638497,0.19996407,16937.0,16936.0,4.1237692]
[1673111639023,0.19996407,16937.0,16936.0,3.76932507]
[1673111640824,0.19996407,16937.0,16936.0,3.27811707]
[1673111641667,0.19996407,16937.0,16936.0,3.76932507]
[1673111641863,0.19996407,16937.0,16936.0,3.76463207]
[1673111642129,0.19996407,16937.0,16936.0,3.27342407]
[1673111642652,0.19996407,16937.0,16936.0,3.76463207]
[1673111642847,0.19996407,16937.0,16936.0,3.27342407]
[1673111643103,0.19996407,16937.0,16936.0,3.76463207]
[1673111644375,0.19996407,16937.0,16936.0,3.27342407]
[1673111644636,0.19996407,16937.0,16936.0,3.76463207]
[1673111645204,0.19996407,16937.0,16936.0,3.27342407]
[1673111645950,0.19996407,16937.0,16936.0,3.76463207]
[1673111646939,0.19996407,16937.0,16936.0,3.27342407]
[1673111648457,0.19996407,16937.0,16936.0,3.76463207]
[1673111649436,0.19996407,16937.0,16936.0,3.27342407]
[1673111649992,0.19996407,16937.0,16936.0,3.76463207]
[1673111650247,0.19996407,16937.0,16936.0,3.27342407]
[1673111650511,0.19996407,16937.0,16936.0,3.76463207]
[1673111653683,0.19996407,16937.0,16936.0,3.27342407]
[1673111653937,0.19996407,16937.0,16936.0,3.76463207]
[1673111654184,0.19996407,16937.0,16936.0,3.27342407]
[1673111654427,0.19996407,16937.0,16936.0,3.76463207]
[1673111655825,0.19996407,16937.0,16936.0,3.27342407]
[1673111656341,0.19996407,16937.0,16936.0,3.76463207]
[1673111656596,0.19996407,16937.0,16936.0,3.27342407]
[1673111657109,0.19996407,16937.0,16936.0,3.76463207]
[1673111658113,0.19996407,16937.0,16936.0,3.27342407]
[1673111658386,0.19996407,16937.0,16936.0,3.76463207]
[1673111659406,0.19996407,16937.0,16936.0,3.27342407]
[1673111659661,0.19996407,16937.0,16936.0,3.76463207]
[1673111661885,0.19996407,16937.0,16936.0,3.27342407]
[1673111662111,0.19996407,16937.0,16936.0,3.76463207]
[1673111663141,0.19996407,16937.0,16936.0,3.27342407]
[1673111663589,0.19996407,16937.0,16936.0,3.76463207]
[1673111664488,0.19996407,16937.0,16936.0,3.27342407]
[1673111666228,0.19996407,16937.0,16936.0,3.76463207]
[1673111667140,0.19996407,16937.0,16936.0,3.27342407]
[1673111667372,0.19996407,16937.0,16936.0,3.76463207]
[1673111667822,0.19996407,16937.0,16936.0,3.27342407]
[1673111669605,0.19996407,16937.0,16936.0,3.76463207]
[1673111670636,0.19965397,16937.0,16936.0,3.76463207]
[1673111671149,0.19965397,16937.0,16936.0,3.27342407]
[1673111672793,0.19965397,16937.0,16936.0,3.76463207]
[1673111673359,0.37616984,16937.0,16936.0,3.76463207]
[1673111673619,0.19965397,16937.0,16936.0,3.90046409]
[1673111673903,0.19965397,16937.0,16936.0,3.76463207]
[1673111674414,0.19965397,16937.0,16936.0,3.6278682]
[1673111674713,0.19965397,16937.0,16936.0,3.27342407]
[1673111675496,0.37616984,16937.0,16936.0,3.27342407]
[1673111677553,0.37616984,16937.0,16936.0,2.40083238]
[1673111678794,0.37616984,16937.0,16936.0,3.27341608]
[1673111679044,0.37616984,16937.0,16936.0,3.76462408]
[1673111680819,0.37616984,16937.0,16936.0,3.27341608]
[1673111682056,0.37616984,16937.0,16936.0,3.76462408]
[1673111682832,0.37616984,16937.0,16936.0,3.27341985]
[1673111683083,0.37616984,16937.0,16936.0,3.76462785]
[1673111684605,0.19965397,16937.0,16936.0,3.76462785]
[1673111686590,0.37616984,16937.0,16936.0,3.76462785]
[1673111686839,0.37616984,16937.0,16936.0,2.40083238]
[1673111687059,0.37616984,16937.0,16936.0,3.2734189]
[1673111687564,0.37616984,16937.0,16936.0,3.7646269]
[1673111688067,0.19965397,16937.0,16936.0,3.7646269]
[1673111689770,0.37616984,16937.0,16936.0,3.7646269]
[1673111691347,0.19965397,16937.0,16936.0,3.7646269]
[1673111692250,0.37616984,16937.0,16936.0,3.7646269]
[1673111693309,0.19965397,16937.0,16936.0,3.7646269]
[1673111695785,0.19965397,16937.0,16936.0,3.2734189]
[1673111696560,0.19965397,16937.0,16936.0,3.7646269]
[1673111697797,0.19965397,16937.0,16936.0,3.2734189]
[1673111698293,0.19965397,16937.0,16936.0,2.0971959]
[1673111698805,0.37616984,16937.0,16936.0,3.2781119]
[1673111699061,0.19965397,16937.0,16936.0,3.2781119]
[1673111699565,0.37616984,16937.0,16936.0,3.2781119]
[1673111701137,0.37616984,16937.0,16936.0,2.40552538]
[1673111701415,0.36873484,16937.0,16936.0,2.40552538]
[1673111701663,0.36873484,16937.0,16936.0,2.13963793]
[1673111705698,0.63429043,16937.0,16936.0,2.13963793]
[1673111706210,0.36873484,16937.0,16936.0,2.13963793]
[1673111707197,0.63429043,16937.0,16936.0,2.13963793]
[1673111707709,0.36873484,16937.0,16936.0,2.13963793]
[1673111708773,0.36873484,16937.0,16936.0,1.96238736]
[1673111709068,0.36873484,16937.0,16936.0,2.13963793]
[1673111714054,0.36873484,16937.0,16936.0,2.63084593]
[1673111717068,0.19221897,16937.0,16936.0,2.63084593]
[1673111717296,0.36873484,16937.0,16936.0,2.63084593]
[1673111717552,0.19221897,16937.0,16936.0,2.63084593]
[1673111717808,0.36873484,16937.0,16936.0,2.63084593]
[1673111718580,0.19221897,16937.0,16936.0,2.63084593]
[1673111719358,0.36873484,16937.0,16936.0,2.63084593]
[1673111720138,0.19221897,16937.0,16936.0,2.63084593]
[1673111720396,0.19221897,16937.0,16936.0,2.89673338]
[1673111720656,0.19221897,16937.0,16936.0,2.63084593]
[1673111721868,0.19221897,16937.0,16936.0,2.13963793]
[1673111722616,0.36873484,16937.0,16936.0,2.13963793]
[1673111723925,0.19221897,16937.0,16936.0,2.13963793]
[1673111724916,0.36873484,16937.0,16936.0,2.13963793]
[1673111726666,0.19221897,16937.0,16936.0,2.13963793]
[1673111727360,0.19221897,16937.0,16936.0,2.63084593]
[1673111727641,0.36873484,16937.0,16936.0,2.63084593]
[1673111728176,0.19221897,16937.0,16936.0,2.63084593]
[1673111728702,0.36873484,16937.0,16936.0,2.63084593]
[1673111728946,0.19221897,16937.0,16936.0,2.63084593]
[1673111729666,0.36873484,16937.0,16936.0,2.63084593]
[1673111730678,0.19221897,16937.0,16936.0,2.63084593]
[1673111731311,0.36873484,16937.0,16936.0,2.63084593]
[1673111731572,0.36873484,16937.0,16936.0,2.13963793]
[1673111738621,0.36873484,16937.0,16936.0,2.63084593]
[1673111741804,0.36873484,16937.0,16936.0,2.13963793]
[1673111744094,0.36873484,16937.0,16936.0,2.63084593]
[1673111745315,0.36873484,16937.0,16936.0,2.13963793]
[1673111745571,0.36873484,16937.0,16936.0,3.27810121]
[1673111745572,0.19221897,16937.0,16936.0,3.27810121]
[1673111745844,0.19221897,16937.0,16936.0,3.76930921]
[1673111746100,0.36873484,16937.0,16936.0,3.76930921]
[1673111746349,0.36873484,16937.0,16936.0,2.40552538]
[1673111746866,0.36873484,16937.0,16936.0,2.13963793]
[1673111747863,0.36873484,16937.0,16936.0,2.63084593]
[1673111748357,0.36873484,16937.0,16936.0,2.13963793]
[1673111751040,0.36873484,16937.0,16936.0,2.63084593]
[1673111751291,0.36873484,16937.0,16936.0,2.13963793]
[1673111751790,0.63429043,16937.0,16936.0,2.13963793]
[1673111753829,0.36873484,16937.0,16936.0,2.13963793]
[1673111756354,0.63429043,16937.0,16936.0,2.13963793]
[1673111756569,0.36873484,16937.0,16936.0,2.13963793]
[1673111772902,0.63429043,16937.0,16936.0,2.13963793]
[1673111773398,0.36873484,16937.0,16936.0,2.13963793]
[1673111782282,0.36873484,16937.0,16936.0,2.63084593]
[1673111782538,0.36873484,16937.0,16936.0,2.89673338]
[1673111783295,0.36873484,16937.0,16936.0,2.63084593]
[1673111783512,0.36873484,16937.0,16936.0,2.89673338]
[1673111786021,0.36873484,16937.0,16936.0,3.27810624]
[1673111786284,0.36873484,16937.0,16936.0,3.76931424]
[1673111786512,0.19221897,16937.0,16936.0,3.76931424]
[1673111790382,0.19221897,16937.0,16936.0,3.27810624]
[1673111791590,0.19221897,16937.0,16936.0,2.40552538]
[1673111792055,0.19221897,16937.0,16936.0,3.27809708]
[1673111792330,0.19221897,16937.0,16936.0,3.76930447]
[1673111792792,0.19221897,16937.0,16936.0,3.76930522]
[1673111793012,0.19221897,16937.0,16936.0,3.76930417]
[1673111793236,0.19221897,16937.0,16936.0,2.89673338]
[1673111793456,0.19221897,16937.0,16936.0,2.40552538]
[1673111793719,0.19221897,16937.0,16936.0,3.76930704]
[1673111794232,0.19221897,16937.0,16936.0,3.27809904]
[1673111794445,0.19221897,16937.0,16936.0,3.2780948]
[1673111794911,0.19221897,16937.0,16936.0,2.40552538]
[1673111795172,0.19221897,16937.0,16936.0,3.27809566]
[1673111795633,0.19221897,16937.0,16936.0,3.76930366]
[1673111796899,0.19221897,16937.0,16936.0,3.27809566]
[1673111797629,0.19221897,16937.0,16936.0,3.76930366]
[1673111798089,0.19221897,16937.0,16936.0,3.76930399]
[1673111798304,0.19221897,16937.0,16936.0,2.89673338]
[1673111798747,0.19221897,16937.0,16936.0,2.40552538]
[1673111798974,0.19221897,16937.0,16936.0,3.76930547]
[1673111799186,0.19221897,16937.0,16936.0,2.89673338]
[1673111799414,0.19221897,16937.0,16936.0,2.40552538]
[1673111800206,0.19221897,16937.0,16936.0,2.89673338]
[1673111802227,0.19221897,16937.0,16936.0,3.76930627]
[1673111803902,0.19221897,16937.0,16936.0,3.76930916]
[1673111810173,0.19221897,16937.0,16936.0,3.27810116]
[1673111810465,0.19221897,16937.0,16936.0,2.89673338]
[1673111810708,0.19221897,16937.0,16936.0,2.40552538]
[1673111811215,0.19221897,16937.0,16936.0,3.27809929]
[1673111811518,0.19221897,16937.0,16936.0,3.76930729]
[1673111811709,0.36873484,16937.0,16936.0,3.01221184]
[1673111811932,0.19221897,16937.0,16936.0,3.01221184]
[1673111812153,0.19221897,16937.0,16936.0,3.27809929]
[1673111812372,0.19221897,16937.0,16936.0,3.76930729]
[1673111812627,0.36873484,16937.0,16936.0,3.76930729]
[1673111812989,0.36873484,16937.0,16936.0,3.01221184]
[1673111813782,0.36873484,16937.0,16936.0,3.50341984]
[1673111814904,0.36873484,16937.0,16936.0,3.76930729]
[1673111815431,0.19221897,16937.0,16936.0,3.76930729]
[1673111815800,0.36873484,16937.0,16936.0,3.76930729]
[1673111817264,0.36873484,16937.0,16936.0,3.27809929]
[1673111818420,0.36873484,16937.0,16936.0,3.76930729]
[1673111818674,0.36873484,16937.0,16936.0,3.27809929]
[1673111819187,0.36873484,16937.0,16936.0,3.76930729]
[1673111820941,0.36873484,16937.0,16936.0,4.64188613]
[1673111821415,0.36873484,16937.0,16936.0,4.15067813]
[1673111821675,0.36873484,16937.0,16936.0,4.64188613]
[1673111822856,0.36873484,16937.0,16936.0,4.15067813]
[1673111823116,0.19221897,16937.0,16936.0,4.64188613]
[1673111825587,0.36873484,16937.0,16936.0,4.64188613]
[1673111826314,0.19221897,16937.0,16936.0,4.64188613]
[1673111826824,0.19221897,16937.0,16936.0,4.15067813]
[1673111827088,0.36873484,16937.0,16936.0,4.15067813]
[1673111827318,0.19221897,16937.0,16936.0,4.64188613]
[1673111833531,0.36873484,16937.0,16936.0,4.15067813]
[1673111833789,0.36873484,16937.0,16936.0,3.27809929]
[1673111834772,0.36873484,16937.0,16936.0,3.76930729]
[1673111835270,0.36873484,16937.0,16936.0,4.64188712]
[1673111837596,0.36873484,16937.0,16936.0,4.15067912]
[1673111837856,0.36873484,16937.0,16936.0,4.64188712]
[1673111838692,0.36873484,16937.0,16936.0,4.15067912]
[1673111838951,0.36873484,16937.0,16936.0,4.64188712]
[1673111842085,0.19221897,16937.0,16936.0,4.64188712]
[1673111843387,0.36873484,16937.0,16936.0,4.15067912]
[1673111843903,0.36873484,16937.0,16936.0,3.01221184]
[1673111844527,0.36873484,16937.0,16936.0,3.27809929]
[1673111844819,0.36873484,16937.0,16936.0,3.76930729]
[1673111845075,0.36873484,16937.0,16936.0,3.50341984]
[1673111845328,0.36873484,16937.0,16936.0,3.01221184]
[1673111845547,0.36873484,16937.0,16936.0,3.50341984]
[1673111846404,0.36873484,16937.0,16936.0,3.01221184]
[1673111846989,0.36873484,16937.0,16936.0,3.27809929]
[1673111847199,0.36873484,16937.0,16936.0,3.50341984]
[1673111847505,0.36873484,16937.0,16936.0,3.76930729]
[1673111848921,0.36873484,16937.0,16936.0,3.27809929]
[1673111850413,0.36873484,16937.0,16936.0,3.76930729]
[1673111851138,0.36873484,16937.0,16936.0,3.27809929]
[1673111852625,0.36873484,16937.0,16936.0,3.76930729]
[1673111852877,0.36873484,16937.0,16936.0,3.27809929]
[1673111853829,0.36873484,16937.0,16936.0,3.76930729]
[1673111854989,0.36873484,16937.0,16936.0,3.27809929]
[1673111857334,0.36873484,16937.0,16936.0,3.76930729]
[1673111858772,0.36873484,16937.0,16936.0,3.27809929]
[1673111859408,0.36873484,16937.0,16936.0,3.76930729]
[1673111859876,0.36873484,16937.0,16936.0,3.27809929]
[1673111860137,0.19221897,16937.0,16936.0,5.26905564]
[1673111860386,0.19221897,16937.0,16936.0,5.62349977]
[1673111861134,0.19221897,16937.0,16936.0,5.26905564]
[1673111862708,0.18221897,16937.0,16936.0,5.26905564]
[1673111867194,0.18221897,16937.0,16936.0,5.62349977]
[1673111868008,0.18221897,16937.0,16936.0,4.15067704]
[1673111870718,0.18221897,16937.0,16936.0,4.77765336]
[1673111870943,0.18221897,16937.0,16936.0,5.26886136]
[1673111871907,0.18221897,16937.0,16936.0,4.15067704]
[1673111874551,0.18221897,16937.0,16936.0,3.27810313]
[1673111887193,0.18221897,16937.0,16936.0,3.27786048]
[1673111892601,0.18221897,16937.0,16936.0,3.63230461]
[1673111892851,0.18221897,16937.0,16936.0,3.45505404]
[1673111893555,0.18221897,16937.0,16936.0,3.63225162]
[1673111893805,0.18221897,16937.0,16936.0,3.45505404]
[1673111895763,0.18221897,16937.0,16936.0,4.08202952]
[1673111896034,0.18221897,16937.0,16936.0,3.94626204]
[1673111896292,0.18221897,16937.0,16936.0,4.08202947]
[1673111896802,0.18221897,16937.0,16936.0,3.94626204]
[1673111897024,0.18221897,16937.0,16936.0,4.57310747]
[1673111898472,0.18221897,16937.0,16936.0,4.57304234]
[1673111898727,0.18221897,16937.0,16936.0,3.94626204]
[1673111898980,0.18221897,16937.0,16936.0,4.08183434]
[1673111899227,0.18221897,16937.0,16936.0,4.57304234]
[1673111899971,0.18221897,16937.0,16936.0,3.94626204]
[1673111900216,0.18221897,16937.0,16936.0,3.45505404]
[1673111902967,0.18221897,16937.0,16936.0,3.94626204]
[1673111903214,0.18221897,16937.0,16936.0,4.57304192]
[1673111904436,0.18221897,16937.0,16936.0,3.94626204]
[1673111904685,0.18221897,16937.0,16936.0,4.08183359]
[1673111904933,0.18221897,16937.0,16936.0,3.45505404]
[1673111905468,0.18221897,16937.0,16936.0,4.0818987]
[1673111905746,0.18221897,16937.0,16936.0,4.5731067]
[1673111907915,0.18221897,16937.0,16936.0,3.94626204]
[1673111908165,0.18221897,16937.0,16936.0,3.45505404]
[1673111913847,0.18221897,16937.0,16936.0,3.94626204]
[1673111915545,0.18221897,16937.0,16936.0,3.45505404]
[1673111916587,0.18221897,16937.0,16936.0,3.94626204]
[1673111917361,0.18221897,16937.0,16936.0,3.45505404]
[1673111917865,0.18221897,16937.0,16936.0,3.63224016]
[1673111918370,0.18221897,16937.0,16936.0,3.45505404]
[1673111918615,1.53927741,16938.0,16936.0,3.63224129]
[1673111918863,1.53927741,16938.0,16937.0,0.0085]
[1673111919114,1.53927741,16938.0,16937.0,1.36653325]
[1673111919115,0.91197697,16938.0,16937.0,1.36653325]
[1673111919364,0.86403264,16938.0,16937.0,1.36653325]
[1673111919587,0.86403264,16938.0,16937.0,1.85771125]
[1673111920595,0.86403264,16938.0,16937.0,1.87271125]
[1673111921383,1.04340421,16938.0,16937.0,1.87271125]
[1673111921934,1.04340421,16938.0,16937.0,1.38153325]
[1673111922687,1.3089598,16938.0,16937.0,1.204346]
[1673111923405,1.3089598,16938.0,16937.0,1.38153325]
[1673111923663,1.3089598,16938.0,16937.0,1.204346]
[1673111923878,1.3089598,16938.0,16937.0,1.38153325]
[1673111924127,1.04340421,16938.0,16937.0,1.38153325]
[1673111924872,1.3089598,16938.0,16937.0,1.38153325]
[1673111927305,1.3089598,16938.0,16937.0,1.204346]
[1673111928200,1.9089598,16938.0,16937.0,1.20410335]
[1673111928969,1.3089598,16938.0,16937.0,1.20410335]